fUST/lending_fUST_20240509
["ID","MTS","AMOUNT","RATE_DAILY","PERIOD"]
[326688087,1715232642781,-500.0,0.00021916,2]
[326688088,1715232642790,-500.0,0.00021916,2]
[326688089,1715232642799,-500.0,0.00021916,2]
[326688090,1715232642811,-500.0,0.00021916,2]
[326688091,1715232642821,-500.0,0.00021916,2]
[326688092,1715232642831,-500.0,0.00021916,2]
[326688093,1715232642840,-500.0,0.00021916,2]
[326688094,1715232642850,-500.0,0.00021916,2]
[326688095,1715232642859,-500.0,0.00021916,2]
[326688096,1715232642868,-500.0,0.00021916,2]
[326688097,1715232642878,-500.0,0.00021916,2]
[326688098,1715232642887,-500.0,0.00021916,2]
[326688099,1715232642896,-500.0,0.00021916,2]
[326688100,1715232642906,-500.38293002,0.00021916,2]
[326688101,1715232642915,-428.73554143,0.00021916,2]
[326688102,1715232642925,-3090.44437915,0.00021916,2]
[326688103,1715232642934,-151.0,0.00021916,2]
[326688104,1715232642945,-151.0,0.00021916,2]
[326688105,1715232642954,-151.0,0.00021916,2]
[326688106,1715232642963,-9197.95939155,0.00021917,2]
[326688107,1715232642972,-506.4670105,0.00021917,2]
[326688108,1715232642981,-504.76213133,0.00021917,2]
[326688109,1715232642991,-506.02992836,0.00021917,2]
[326688110,1715232643000,-239.2980631,0.00021917,2]
[326688111,1715232643010,-502.96188408,0.00021917,2]
[326688112,1715232643019,-502.84820239,0.00021917,2]
[326688113,1715232643029,-406.75204285,0.00021917,2]
[326688114,1715232643038,-510.46975147,0.00021917,2]
[326688115,1715232643047,-500.0,0.00021917,2]
[326688116,1715232643056,-500.0,0.00021917,2]
[326688117,1715232643065,-500.0,0.00021917,2]
[326688118,1715232643074,-500.0,0.00021917,2]
[326688119,1715232643083,-500.0,0.00021917,2]
[326688120,1715232643093,-500.0,0.00021917,2]
[326688121,1715232643102,-500.0,0.00021917,2]
[326688122,1715232643111,-617.81512289,0.00021917,2]
[326688123,1715232643120,-500.0,0.00021917,2]
[326688124,1715232643130,-500.0,0.00021917,2]
[326688125,1715232643139,-500.0,0.00021917,2]
[326688126,1715232643149,-506.07784148,0.00021917,2]
[326688127,1715232643158,-508.51050682,0.00021917,2]
[326688128,1715232643168,-501.68926384,0.00021917,2]
[326688129,1715232643177,-343.19452409,0.00021917,2]
[326688130,1715232643186,-500.0,0.00021917,2]
[326688131,1715232643196,-820.7,0.00021917,2]
[326688132,1715232643205,-500.0,0.00021917,2]
[326688133,1715232643215,-568.12,0.00021917,2]
[326688134,1715232643227,-500.0,0.00021917,2]
[326688135,1715232643237,-500.0,0.00021917,2]
[326688136,1715232643247,-500.0,0.00021917,2]
[326688137,1715232643256,-853.52,0.00021917,2]
[326688138,1715232643267,-501.25418169,0.00021917,2]
[326688139,1715232643276,-501.20641374,0.00021917,2]
[326688140,1715232643285,-500.0,0.00021917,2]
[326688141,1715232643295,-508.81809636,0.00021917,2]
[326688142,1715232643304,-329.56873298,0.00021917,2]
[326688143,1715232643314,-507.18787034,0.00021917,2]
[326688144,1715232643323,-500.0,0.00021917,2]
[326688145,1715232643332,-500.0,0.00021917,2]
[326688146,1715232643341,-500.0,0.00021917,2]
[326688147,1715232643351,-500.0,0.00021917,2]
[326688148,1715232643360,-2026.6,0.00021917,2]
[326688149,1715232643370,-500.0,0.00021917,2]
[326688150,1715232643379,-500.0,0.00021917,2]
[326688151,1715232643388,-1028.36,0.00021917,2]
[326688152,1715232643398,-501.7727492,0.00021917,2]
[326688153,1715232643407,-500.0,0.00021917,2]
[326688154,1715232643416,-647.82,0.00021917,2]
[326688155,1715232643425,-2355.63,0.00021917,2]
[326688156,1715232643434,-507.9256949,0.00021917,2]
[326688157,1715232643444,-500.0,0.00021917,2]
[326688158,1715232643454,-555.40293189,0.00021917,2]
[326688159,1715232643463,-500.0,0.00021917,2]
[326688160,1715232643472,-11891.58,0.00021917,2]
[326688161,1715232643482,-1197.09,0.00021917,2]
[326688162,1715232643491,-500.0,0.00021917,2]
[326688163,1715232643500,-837.52,0.00021917,2]
[326688164,1715232643510,-500.0,0.00021917,2]
[326688165,1715232643519,-547.13,0.00021917,2]
[326688166,1715232643528,-1404.51,0.00021917,2]
[326688167,1715232643538,-500.0,0.00021917,2]
[326688168,1715232643547,-500.0,0.00021917,2]
[326688169,1715232643557,-418.46236098,0.00021917,2]
[326688170,1715232643566,-513.02684438,0.00021917,2]
[326688171,1715232643575,-2408.27,0.00021917,2]
[326688172,1715232643584,-500.0,0.00021917,2]
[326688173,1715232643594,-1285.15,0.00021917,2]
[326688174,1715232643603,-500.0,0.00021917,2]
[326688175,1715232643612,-500.0,0.00021917,2]
[326688176,1715232643622,-500.0,0.00021917,2]
[326688177,1715232643632,-1842.72,0.00021917,2]
[326688178,1715232643641,-500.0,0.00021917,2]
[326688179,1715232643651,-680.25,0.00021917,2]
[326688180,1715232643660,-500.0,0.00021917,2]
[326688181,1715232643670,-151.0,0.00021917,2]
[326688182,1715232643679,-503.79275033,0.00021917,2]
[326688183,1715232643688,-151.0,0.00021917,2]
[326688184,1715232643696,-151.0,0.00021917,2]
[326688185,1715232643706,-151.0,0.00021917,2]
[326688186,1715232643716,-500.0,0.00021917,2]
[326688187,1715232643725,-151.0,0.00021917,2]
[326688188,1715232643734,-151.0,0.00021917,2]
[326688189,1715232643743,-225.457307,0.00021917,2]
[326688190,1715232643752,-500.0,0.00021917,2]
[326688191,1715232643761,-871.25,0.00021917,2]
[326688192,1715232643770,-500.0,0.00021917,2]
[326688193,1715232643779,-500.0,0.00021917,2]
[326688194,1715232643788,-442.1578848,0.00021917,2]
[326688205,1715232645325,-57.8421152,0.00021917,2]
[326688210,1715232645335,-500.0,0.00021917,2]
[326688215,1715232645344,-58.1178848,0.00021917,2]
[326688220,1715232645357,-441.8821152,0.00021917,2]
[326688224,1715232645366,-500.0,0.00021917,2]
[326688227,1715232645376,-63.40179999,0.00021917,2]
[326688244,1715232647970,-443.42365104,0.00021917,2]
[326688246,1715232647980,-500.0,0.00021917,2]
[326688248,1715232647990,-500.0,0.00021917,2]
[326688250,1715232647999,-408.36027269,0.00021917,2]
[326688254,1715232648055,-650.93972731,0.00021917,2]
[326688255,1715232648065,-399.54113107,0.00021917,2]
[326688256,1715232648077,-835.19763302,0.00021917,2]
[326688257,1715232648089,-1731.10123591,0.00021917,2]
[326688258,1715232648099,-556.85,0.00021917,2]
[326688259,1715232648109,-505.72597859,0.00021917,2]
[326688260,1715232648119,-500.0,0.00021917,2]
[326688261,1715232648128,-500.0,0.00021917,2]
[326688262,1715232648139,-151.0,0.00021917,2]
[326688263,1715232648148,-151.0,0.00021917,2]
[326688264,1715232648158,-151.0,0.00021917,2]
[326688265,1715232648168,-500.0,0.00021917,2]
[326688266,1715232648178,-506.60181214,0.00021917,2]
[326688267,1715232648187,-1272.94,0.00021917,2]
[326688268,1715232648196,-500.0,0.00021917,2]
[326688269,1715232648207,-985.51,0.00021917,2]
[326688270,1715232648220,-166.666666,0.00021918,2]
[326688271,1715232648231,-151.0,0.00021918,2]
[326688272,1715232648241,-151.0,0.00021918,2]
[326688273,1715232648251,-272.574036,0.00021918,2]
[326688274,1715232648263,-159.42165086,0.00022,2]
[326688275,1715232648273,-2955.0,0.00022,3]
[326688276,1715232648283,-151.0,0.00022,2]
[326688277,1715232648292,-622.28742656,0.00022066,2]
[326688278,1715232648304,-2000.0,0.00022165,2]
[326688279,1715232648314,-12312.04360418,0.00022191,5]
[326688280,1715232648326,-239.81363357,0.00022191,5]
[326688281,1715232648335,-1438.01836643,0.00022191,5]
[326688299,1715233210803,4949.5689048,0.000211,9]
[326688317,1715233655209,10000.0,0.00025,60]
[326688318,1715233667814,10000.0,0.00025,60]
[326688319,1715233675698,10000.0,0.00025,60]
[326688320,1715233683362,10000.0,0.00025,60]
[326688321,1715233705432,9973.58,0.00025,60]
[326688323,1715233836971,-163.453782,0.0001589,2]
[326688324,1715233836982,-347.219292,0.0001589,2]
[326688325,1715233836993,-265.139496,0.00017934,2]
[326688326,1715233837003,-868.69827093,0.00018677,2]
[326688327,1715233837013,-9383.69161612,0.00018764,2]
[326688328,1715233837025,-26050.0,0.00018765,2]
[326688329,1715233837035,-3509.62706395,0.00018777,2]
[326688444,1715234759921,234.66,0.00019,10]
[326688531,1715235045748,-265.139496,0.00017345,2]
[326688532,1715235045935,-186.64696616,0.00017649,2]
[326688533,1715235045956,-412.55333538,0.00017649,2]
[326688534,1715235045981,-294.51792014,0.00017649,2]
[326688535,1715235046003,-154.9726954,0.00017649,2]
[326688536,1715235046025,-185.39269354,0.00017649,2]
[326688537,1715235046050,-1501.20841821,0.0001765,2]
[326688538,1715235046074,-26050.0,0.00017651,2]
[326688539,1715235046100,-19430.86847517,0.00017652,2]
[326688552,1715235079393,-920.62709156,0.00017245,2]
[326688553,1715235079421,-5469.13152483,0.00017652,2]
[326688554,1715235119228,-821.28138361,0.00018485,2]
[326688557,1715235262864,1882.53987858,9.999e-05,2]
[326688623,1715236250213,-194.228704,0.0001589,2]
[326688626,1715236250224,-163.453782,0.0001589,2]
[326688629,1715236250234,-181.54729556,0.00016653,2]
[326688649,1715236250375,-6.71878294,0.00016653,2]
[326688651,1715236250388,-2578.3355607,0.00017212,2]
[326688877,1715236949373,-20000.11071979,0.0003,30]
[326688878,1715236949435,-1092.4821,0.00031377,30]
[326688879,1715236949496,-785.804,0.00033377,30]
[326688880,1715236949562,-200.0,0.00034081,120]
[326688881,1715236949624,-1000.0,0.000348,30]
[326688882,1715236949693,-187.13,0.00035586,35]
[326688883,1715236949757,-150.5,0.00035596,35]
[326688884,1715236949821,-150.5,0.00035606,35]
[326688885,1715236949887,-2924.039811,0.00035616,120]
[326688886,1715236949954,-200.71137652,0.00036,30]
[326688887,1715236950018,-1104.9867296,0.0003707,31]
[326688888,1715236950081,-3000.0,0.000375,32]
[326688889,1715236950144,-3000.0,0.0003751,32]
[326688890,1715236950208,-3000.0,0.0003752,32]
[326688891,1715236950271,-3000.0,0.0003753,32]
[326688892,1715236950332,-3260.597955,0.0003754,32]
[326688893,1715236950392,-10183.0,0.00037777,120]
[326688894,1715236950453,-2969.36907345,0.000385,60]
[326688895,1715236950518,-702720.18526285,0.00038609,90]
[326688896,1715236950581,-498.02951776,0.00039999,31]
[326688897,1715236950645,-500.0,0.00039999,31]
[326688898,1715236950706,-500.0,0.00039999,31]
[326688899,1715236950768,-500.0,0.00039999,31]
[326688900,1715236950829,-500.0,0.00039999,31]
[326688901,1715236950891,-500.0,0.00039999,31]
[326688902,1715236950952,-500.0,0.00039999,31]
[326688903,1715236951013,-500.0,0.00039999,31]
[326688904,1715236951074,-521.83190116,0.0004,120]
[326688905,1715236951133,-200.0,0.0004,120]
[326688906,1715236951193,-1100.55849754,0.0004,60]
[326688907,1715236951251,-234.45621295,0.0004,30]
[326688908,1715236951310,-18473.25175449,0.0004,120]
[326688909,1715236951370,-205637.89017693,0.0004,120]
[326688910,1715236951429,-1000.0,0.0004,30]
[326688911,1715236951490,-1000.0,0.0004,120]
[326688912,1715236951549,-2000.0,0.0004,32]
[326688913,1715236951612,-500.0,0.00041,120]
[326688914,1715236951674,-1000.0,0.00041095,120]
[326688915,1715236951736,-1000.0,0.00041095,120]
[326688916,1715236951796,-1000.0,0.00041095,120]
[326688917,1715236951857,-718.83051831,0.00041095,120]
[326688918,1715236951917,-2685.73439265,0.00041099,120]
[326688995,1715236964185,-188.30025848,0.00041099,120]
[326688996,1715236964251,-557.0,0.00041214,30]
[326688997,1715236964314,-2924.039811,0.00041553,120]
[326688998,1715236964377,-200.0,0.00041675,120]
[326688999,1715236964438,-1196.65299633,0.00041978,44]
[326689000,1715236964503,-444.88899348,0.00042,120]
[326689001,1715236964566,-2000.0,0.000423,30]
[326689002,1715236964628,-2000.0,0.000424,30]
[326689003,1715236964694,-1697.7015456,0.000425,30]
[326689004,1715236964758,-1406.0,0.000425,30]
[326689005,1715236964819,-2000.0,0.000425,30]
[326689006,1715236964880,-873.86285017,0.000428,60]
[326689007,1715236964941,-557.0,0.00043383,30]
[326689008,1715236965005,-500.0,0.00044,120]
[326689009,1715236965070,-154.73694719,0.00044,120]
[326689010,1715236965132,-220.04883506,0.00044999,120]
[326689011,1715236965196,-151.0,0.00045,120]
[326689012,1715236965260,-151.0,0.00045644,120]
[326689013,1715236965322,-511.64536268,0.0004566,120]
[326689014,1715236965384,-10869.24517869,0.00045666,120]
[326689015,1715236965446,-156.17312734,0.00045666,68]
[326689016,1715236965510,-557.0,0.00045666,30]
[326689017,1715236965575,-2874.03465113,0.00046099,120]
[326689018,1715236965637,-151.0,0.00046274,120]
[326689020,1715236981544,-1000.0,0.00035017,120]
[326689021,1715236981610,-159.0,0.00035017,120]
[326689022,1715236981679,-160.0,0.00035017,30]
[326689023,1715236981746,-158.60993444,0.00035017,30]
[326689024,1715236981813,-1382.82369882,0.00035017,30]
[326689025,1715236981880,-683.5070257,0.00035017,30]
[326689026,1715236981950,-291.07504422,0.00035017,120]
[326689027,1715236982016,-311.31074278,0.00035017,120]
[326689028,1715236982082,-1474.62441995,0.00035017,120]
[326689029,1715236982146,-557.0,0.00035017,30]
[326689030,1715236982392,-557.0,0.00035017,30]
[326689031,1715236982483,-557.0,0.00035017,30]
[326689032,1715236982578,-557.0,0.00035017,30]
[326689033,1715236982642,-1377.58181019,0.00035017,120]
[326689034,1715236982703,-557.0,0.00035017,30]
[326689035,1715236982768,-557.0,0.00035017,30]
[326689036,1715236982829,-557.0,0.00035017,30]
[326689037,1715236982892,-557.0,0.00035017,30]
[326689038,1715236982956,-557.0,0.00035017,30]
[326689039,1715236983021,-557.0,0.00035017,30]
[326689040,1715236983084,-557.0,0.00035017,30]
[326689041,1715236983146,-557.0,0.00035017,30]
[326689042,1715236983207,-557.0,0.00035017,30]
[326689043,1715236983269,-557.0,0.00035017,30]
[326689044,1715236983330,-557.0,0.00035017,30]
[326689045,1715236983392,-557.0,0.00035017,30]
[326689046,1715236983462,-557.0,0.00035017,30]
[326689047,1715236983524,-557.0,0.00035017,30]
[326689048,1715236983585,-557.0,0.00035017,30]
[326689049,1715236983647,-557.0,0.00035017,30]
[326689050,1715236983711,-557.0,0.00035017,30]
[326689051,1715236983774,-557.0,0.00035017,30]
[326689052,1715236983836,-557.0,0.00035017,30]
[326689053,1715236983898,-474.34579127,0.00035017,30]
[326689054,1715236983998,-557.0,0.00035017,30]
[326689055,1715236984077,-278.70136116,0.00035017,30]
[326689056,1715236984141,-1613.17167871,0.00035017,30]
[326689057,1715236984203,-157.96408012,0.00035017,30]
[326689058,1715236984267,-157.96408012,0.00035017,30]
[326689059,1715236984328,-157.96408012,0.00035017,30]
[326689060,1715236984390,-157.96408012,0.00035017,30]
[326689061,1715236984453,-157.96408012,0.00035017,30]
[326689062,1715236984520,-157.96408012,0.00035017,30]
[326689063,1715236984584,-157.96408012,0.00035017,30]
[326689064,1715236984649,-157.96408012,0.00035017,30]
[326689065,1715236984713,-157.96408014,0.00035017,30]
[326689066,1715236984776,-475845.57177166,0.00035017,30]
[326689069,1715237201719,-181808.01247581,0.00035017,30]
[326689070,1715237201788,-157.96408012,0.00035017,30]
[326689071,1715237201855,-157.96408012,0.00035017,30]
[326689072,1715237201922,-157.96408012,0.00035017,30]
[326689073,1715237201989,-1000.0,0.00035017,120]
[326689074,1715237202056,-157.96408012,0.00035017,30]
[326689075,1715237202122,-159.0,0.00035017,120]
[326689076,1715237202188,-157.96408012,0.00035017,30]
[326689077,1715237202254,-157.96408012,0.00035017,30]
[326689078,1715237202319,-157.96408012,0.00035017,30]
[326689079,1715237202385,-157.96408012,0.00035017,30]
[326689080,1715237202451,-157.96408014,0.00035017,30]
[326689081,1715237261846,5000.0,0.000211,9]
[326689082,1715237438597,292.510394,0.00014711,2]
[326689086,1715237439804,-923.97811408,0.00015481,2]
[326689091,1715237439819,-166.77495429,0.00015648,2]
[326689094,1715237439831,-15694.89103439,0.00015649,2]
[326689097,1715237439843,-26050.0,0.00015649,2]
[326689101,1715237439854,-2034.16195214,0.0001565,2]
[326689103,1715237439866,-2391.71099411,0.0001565,2]
[326689108,1715237439882,-682.53789849,0.00015652,2]
[326689120,1715237446764,-999.166,0.00015652,2]
[326689134,1715237455315,-15691.05079064,0.00015651,2]
[326689138,1715237455326,-3473.9485747,0.00015651,2]
[326689225,1715238633243,-329.858327,0.0001589,2]
[326689228,1715238633252,-172.186719,0.0001589,2]
[326689229,1715238633262,-194.228704,0.0001589,2]
[326689231,1715238633271,-188.266078,0.00016293,2]
[326689233,1715238633280,-466.56532084,0.00016445,2]
[326689236,1715238633292,-453.74770734,0.00016445,2]
[326689425,1715239595487,173.83,0.00019,10]
[326689544,1715239842265,-452.301125,0.0001589,2]
[326689546,1715239842275,-306.3083692,0.00015938,2]
[326689549,1715239842285,-188.266078,0.00016468,2]
[326689551,1715239842295,-13291.62379657,0.00016676,5]
[326689556,1715239842305,-20761.50063123,0.00016676,2]
[326689650,1715239848362,-5288.49936877,0.00016676,2]
[326689657,1715239848371,-789.2902486,0.00016682,2]
[326689813,1715239947049,522.0776024,9.999e-05,2]
[326689815,1715240092249,24900.0,0.00015681,2]
[326689818,1715240219507,5019.74641021,0.000125,2]
[326689819,1715240875437,160.285376,0.0001589,2]
[326689822,1715241034135,-383.0399921,0.00016422,2]
[326689826,1715241034153,-25666.9600079,0.00016422,2]
[326689828,1715241034164,-4021.94558928,0.00016423,2]
[326689830,1715241034173,-1723.90335816,0.00016423,2]
[326689832,1715241034183,-16788.49868026,0.00016425,2]
[326689844,1715241039582,-8111.50131974,0.00016425,2]
[326689846,1715241039592,-274.4509611,0.000165,2]
[326689848,1715241039602,-170.96722173,0.00016515,2]
[326689850,1715241039612,-154.72324417,0.00016678,2]
[326689852,1715241039622,-11499.82382506,0.00017707,2]
[326689854,1715241039632,-154.97261476,0.0001771,2]
[326689856,1715241039642,-153.0,0.000184,2]
[326689858,1715241039652,-153.8231568,0.000184,2]
[326689860,1715241039662,-153.0,0.000184,2]
[326689862,1715241039671,-315.55697016,0.00018482,2]
[326689864,1715241039681,-425.41694206,0.00018483,2]
[326689866,1715241039691,-1163.75514321,0.00018484,2]
[326689868,1715241039700,-153.0,0.000185,2]
[326689870,1715241039709,-28570.50957099,0.00018608,5]
[326689872,1715241039718,-151.495698,0.00018608,2]
[326689874,1715241039727,-151.0,0.00018608,2]
[326689876,1715241039736,-151.0,0.00018608,2]
[326689879,1715241039746,-151.0,0.00018608,2]
[326689881,1715241039755,-155.0150874,0.00018609,2]
[326689884,1715241039764,-262.14470515,0.00018609,2]
[326689887,1715241039774,-154.94505041,0.00018609,2]
[326689890,1715241039783,-154.97449672,0.00018609,2]
[326689893,1715241039792,-2114.94996902,0.00018609,2]
[326689896,1715241039802,-226.15761641,0.00018609,2]
[326689898,1715241039811,-1819.24222805,0.0001861,2]
[326689900,1715241039821,-151.0,0.00018776,2]
[326689902,1715241039830,-270.555248,0.00018776,2]
[326689904,1715241039840,-151.0,0.00018776,2]
[326689906,1715241039849,-151.0,0.00018776,2]
[326689908,1715241039858,-151.0,0.00018776,2]
[326689910,1715241039868,-151.0,0.00018776,2]
[326689913,1715241039878,-151.0,0.00018776,2]
[326689914,1715241039887,-166.640933,0.00018776,2]
[326689916,1715241039897,-151.0,0.00018776,2]
[326689919,1715241039907,-151.0,0.00018776,2]
[326689921,1715241039917,-244.38497,0.00018776,2]
[326689923,1715241039927,-151.0,0.00018776,2]
[326689925,1715241039937,-9383.69161612,0.00018776,2]
[326689927,1715241039947,-195.92490524,0.0001881,2]
[326689929,1715241039958,-620.11437173,0.00018871,2]
[326689931,1715241039968,-638.07180139,0.000189,2]
[326689933,1715241039978,-364.01672571,0.00019,2]
[326689935,1715241039988,-164.975406,0.00019178,2]
[326689937,1715241039998,-166.48781,0.00019178,2]
[326689939,1715241040007,-166.48781,0.00019178,2]
[326689941,1715241040017,-306.5211145,0.00019315,2]
[326689943,1715241040026,-620.00571859,0.00019814,2]
[326689945,1715241040036,-150.0,0.0002,2]
[326689947,1715241040045,-56990.0622949,0.0002,2]
[326689949,1715241040963,-1097.2989864,0.0002,2]
[326689964,1715241047958,-5241.7733176,0.0002,2]
[326690036,1715241376267,178.433418,0.0001589,2]
[326690063,1715241619558,309.41211698,0.0001589,2]
[326690094,1715241647968,19257.16712416,0.0001589,2]
[326690099,1715241659538,236.0512273,0.0001589,2]
[326690100,1715241673982,19219.54262117,0.0001589,2]
[326690101,1715241710012,19219.54262117,0.0001589,2]
[326690102,1715241725994,19223.65216977,0.0001589,2]
[326690103,1715241745986,19223.65216977,0.0001589,2]
[326690104,1715241771999,608.93680983,0.0001589,2]
[326690105,1715242113432,281.09538641,0.0001589,2]
[326690106,1715242131270,16124.95486742,0.0001589,2]
[326690107,1715242137085,281.09538641,0.0001589,2]
[326690108,1715242145262,16124.95486742,0.0001589,2]
[326690109,1715242155098,343.17299185,0.0001589,2]
[326690110,1715242161215,4715.65316397,0.0001589,2]
[326690125,1715242233107,-153.23142217,0.00017676,2]
[326690129,1715242233116,-760.11098702,0.00017676,2]
[326690132,1715242233126,-425.41694206,0.00017775,2]
[326690135,1715242233135,-1163.75514321,0.00017775,2]
[326690138,1715242233144,-315.55697016,0.00017775,2]
[326690141,1715242233154,-154.97261476,0.00017775,2]
[326690144,1715242233164,-6966.2565707,0.00017775,2]
[326690156,1715242241453,-19083.7434293,0.00017775,2]
[326690163,1715242241467,-2114.94996902,0.00017776,2]
[326690170,1715242241479,-155.0150874,0.00017776,2]
[326690175,1715242241494,-154.94505041,0.00017776,2]
[326690181,1715242241510,-262.14470515,0.00017776,2]
[326690185,1715242241522,-1819.24222805,0.00017776,2]
[326690192,1715242241534,-226.15761641,0.00017777,2]
[326690198,1715242241545,-154.97449672,0.00017777,2]
[326690203,1715242241556,-24900.0,0.00017778,2]
[326690208,1715242241566,-153.23142213,0.00018143,2]
[326690213,1715242241576,-153.23142213,0.00018609,2]
[326690218,1715242241587,-2686.92892201,0.00018736,2]
[326690222,1715242241597,-9383.69161612,0.00018738,2]
[326690227,1715242241607,-638.07180139,0.000189,2]
[326690232,1715242241616,-495.317,0.0001892,2]
[326690235,1715242241626,-189.65271409,0.00019,2]
[326690238,1715242241636,-153.23142213,0.00019076,2]
[326690241,1715242241646,-165.983675,0.00019178,2]
[326690244,1715242241655,-153.23142213,0.00019542,2]
[326690246,1715242241665,-170.96722174,0.00019799,2]
[326690249,1715242241675,-195.92490524,0.000198,2]
[326690253,1715242241686,-4178.36295239,0.0002,2]
[326690255,1715242241696,-521.64031409,0.0002,2]
[326690258,1715242241706,-279.0021805,0.0002,2]
[326690260,1715242241716,-447.76467997,0.0002,2]
[326690262,1715242241726,-379.96231687,0.0002,2]
[326690264,1715242241737,-200.0,0.0002,2]
[326690266,1715242241747,-160.0,0.0002,2]
[326690268,1715242241757,-1003.204093,0.0002,2]
[326690270,1715242241767,-153.0,0.0002,2]
[326690272,1715242241778,-153.23142213,0.00020009,2]
[326690274,1715242241788,-2674.57927242,0.00020103,2]
[326690276,1715242241798,-584.02714747,0.00020104,2]
[326690278,1715242241808,-400.0,0.00020105,2]
[326690280,1715242241818,-151.0,0.00020106,2]
[326690282,1715242241827,-151.0,0.00020106,2]
[326690284,1715242241838,-151.0,0.00020106,2]
[326690286,1715242241848,-151.0,0.00020106,2]
[326690288,1715242241858,-151.0,0.00020106,2]
[326690291,1715242241874,-151.0,0.00020106,2]
[326690293,1715242241883,-151.495698,0.00020106,2]
[326690295,1715242241893,-151.0,0.00020106,2]
[326690297,1715242241902,-151.0,0.00020106,2]
[326690299,1715242241912,-151.0,0.00020106,2]
[326690301,1715242241922,-32485.99377091,0.00020106,2]
[326690391,1715242330045,445.874264,0.0001589,2]
[326690396,1715242546139,701.44722507,9.999e-05,2]
[326690402,1715243089716,701.44722507,9.999e-05,2]
[326690404,1715243435774,-701.44722507,0.00017362,2]
[326690406,1715243435786,-14349.35423381,0.00017362,2]
[326690467,1715243442378,-401.30123537,0.00017362,2]
[326690695,1715243574564,816.46166498,9.999e-05,2]
[326690697,1715243743468,16121.01632336,9.999e-05,2]
[326690698,1715243758452,365.14949188,9.999e-05,2]
[326690700,1715243759429,16121.01632336,9.999e-05,2]
[326690701,1715243759609,12939.18564011,9.999e-05,2]
[326690702,1715243781358,154.83458494,9.999e-05,2]
[326690703,1715243791434,1995.25076225,9.999e-05,2]
[326690704,1715243801581,155.33468006,9.999e-05,2]
[326690705,1715243804217,364.54074544,9.999e-05,2]
[326690706,1715243815125,154.7215013,9.999e-05,2]
[326690707,1715243831080,229.62867928,9.999e-05,2]
[326690708,1715243868193,285.33278168,0.00015,2]
[326690709,1715243888147,285.33278168,0.00015,2]
[326690710,1715243901253,1093.61289043,0.00015,2]
[326690711,1715243906145,285.33278168,0.00015,2]
[326690712,1715243924149,285.33278168,0.00015,2]
[326690713,1715243946171,285.33278168,0.00015,2]
[326690714,1715243966252,285.33278168,0.00015,2]
[326690715,1715243984271,409.5465377,0.00015,2]
[326690716,1715244071747,292.19097324,9.999e-05,2]
[326690717,1715244079066,162.877953,0.0001589,2]
[326690718,1715244102730,701.44722507,9.999e-05,2]
[326690719,1715244224317,2686.92892201,0.00012248,2]
[326690720,1715244260230,195.92490524,0.000136,2]
[326690721,1715244318071,934.975751,0.00015331,2]
[326690722,1715244376978,187.0383061,0.00015616,2]
[326690723,1715244409470,18740.0132096,0.0001533,2]
[326690724,1715244432344,24900.0,0.0001533,2]
[326690725,1715244495800,420.18262,0.00015306,2]
[326690726,1715244521966,292.19097324,9.999e-05,2]
[326690727,1715244567886,701.44722507,9.999e-05,2]
[326690728,1715244626578,691.1063288,0.0001545,2]
[326690731,1715244634471,-775.55721628,0.00016231,2]
[326690734,1715244634482,-461.37559035,0.00016238,2]
[326690738,1715244634491,-701.44722507,0.00016326,2]
[326690741,1715244634503,-291.91824705,0.00016327,2]
[326690744,1715244634513,-154.72324417,0.00016328,2]
[326690747,1715244634523,-26050.0,0.00016328,2]